Cogmind - Beta 13 @@@ ROGUE MODE // 2024.04.21 @ 20:14:52 Player: osman sinnoks Result: Destroyed by G-47 Trooper with Particle Gun Performance ------------- Evolutions (2) 1000 Regions Visited (5) 1000 Robots Destroyed (23) 115 Value Destroyed (505) 505 Prototype IDs (3) 60 Alien Tech Used (0) 0 Bonus (300) 300 TOTAL SCORE: 2980 Bonus ------- Aligned with FarCom 300 Cogmind --------- Core Integrity 0/550 Matter 260/300 Energy 94/100 System Corruption 6% Temperature Cool (18) Movement Core (50) Location -8/Materials Parts ------- > --- POWER (2) -------- (None) > --- PROPULSION (2) --- (None) > --- UTILITY (4) ------ (None) > --- WEAPON (3) ------- Axe > --- INVENTORY (5) ---- Small Storage Unit Latent Energy Streamer Peak State ------------ > --- POWER ------------ Nuclear Core Light Nuclear Core > --- PROPULSION ------- Aluminum Leg Aluminum Leg > --- UTILITY ---------- Medium Storage Unit Weight Redist. System Weight Redist. System Seismic Detector > --- WEAPON ----------- Particle Gun Latent Energy Streamer Assault Rifle > --- INVENTORY -------- Light Ion Engine Small Storage Unit Particle Gun [Rating: 27] Favorites ----------- Power Light Nuclear Core Engine Light Ion Engine Power Core Light Nuclear Core Propulsion Aluminum Leg Leg Aluminum Leg Utility Seismic Detector Device Seismic Detector Storage Medium Storage Unit Weapon Particle Gun Energy Gun Particle Gun Energy Cannon Latent Energy Streamer Ballistic Gun Assault Rifle Slashing Weapon Axe Build | -11 -10 -10 -10 -9 -8 ------- Run | Yrd Mat Min Exi Min Mat Slots Evolved 4 | . . . . . 4 Power 1 | . . . . . 1 Propulsion . | . . . . . . Utility 2 | . . . . . 2 Weapon 1 | . . . . . 1 Parts Attached 32 | 8 2 . 9 2 11 Power 7 | 2 1 . 1 . 3 Engine 5 | 2 1 . . . 2 Core 2 | . . . 1 . 1 Reactor . | . . . . . . Propulsion 4 | 2 1 . . 1 . Treads . | . . . . . . Leg 4 | 2 1 . . 1 . Wheel . | . . . . . . Hover . | . . . . . . Flight . | . . . . . . Utility 8 | 2 . . 4 . 2 Device 4 | 1 . . 1 . 2 Storage 4 | 1 . . 3 . . Processor . | . . . . . . Hackware . | . . . . . . Protection . | . . . . . . Artifact . | . . . . . . Weapon 13 | 2 . . 4 1 6 Energy Gun 5 | 1 . . 2 1 1 Energy Cannon 4 | . . . 2 . 2 Ballistic Gun 2 | 1 . . . . 1 Ballistic Cannon . | . . . . . . Launcher . | . . . . . . Special Weapon . | . . . . . . Impact Weapon . | . . . . . . Slashing Weapon 2 | . . . . . 2 Piercing Weapon . | . . . . . . Special Melee Weapon . | . . . . . . Unidentified Prototypes 3 | . . . 3 . . Parts Lost 13 | . 3 . . 1 9 Power 3 | . 1 . . . 2 Propulsion 3 | . 1 . . 1 1 Utility 3 | . . . . . 3 Weapon 4 | . 1 . . . 3 Highest Loss Streak 7 | . 3 . . 1 7 To Critical Strikes . | . . . . . . Average Slot Usage (%) 92 | . 81 85 99 98 67 Engine 2 | . 11 14 . . 2 Core 10 | . . . 13 14 10 Leg 25 | . 25 28 28 26 11 Device 14 | . 14 14 14 14 16 Storage 13 | . 14 14 13 14 7 Energy Gun 12 | . 1 . 13 24 12 Ballistic Gun 10 | . 14 14 14 3 3 Naked Turns 23 | . . . . . 23 Heaviest Build 39 | 13 13 11 21 22 39 Greatest Support 26 | 20 20 20 20 20 26 Greatest Overweight (x) 10 | 2 . . 1 2 10 Average Overweight (x) . | . . . . 1 1 Largest Inventory Capacity 10 | 8 8 8 10 10 10 Average Capacity 9 | 7 8 8 9 10 9 Most Carried 5 | 2 2 2 5 4 4 Average Carried 2 | . . 1 2 3 2 Final Capacity 10 | 8 8 8 10 10 5 Final Carried 4 | 1 . 2 3 4 2 Class Distribution -------------------- 70% | Scavenger-Mutant 25% | Mutant 4% | Scavenger-Skirmisher Dominant Class ---------------- Mutant | -10/Materials Mutant | -10/Mines Scavenger-Mutant | -10/Exiles Scavenger-Mutant | -9/Mines Scavenger-Skirmisher | -8/Materials Resources | -11 -10 -10 -10 -9 -8 ----------- Run | Yrd Mat Min Exi Min Mat Matter Collected 727 | 275 141 52 . 156 103 Remotely . | . . . . . . Salvage Created 907 | 61 141 97 . 182 426 Parts 57 | 7 9 7 . 6 28 Haulers Intercepted 1 | . . . . . 1 Recyclers Shooed 6 | . 2 . . 2 2 Parts Field Recycled . | . . . . . . Retrieved Matter . | . . . . . . Parts Self-Destructed . | . . . . . . Prevented . | . . . . . . Kills | -11 -10 -10 -10 -9 -8 ------- Run | Yrd Mat Min Exi Min Mat Combat Hostiles Destroyed 12 | . 5 2 . 2 3 Melee 1 | . . . . . 1 Guns 11 | . 5 2 . 2 2 Classes Destroyed 9 | 1 2 . . 1 5 Worker 2 | . . . . . 2 Tunneler 3 | 3 . . . . . Hauler 1 | . . . . . 1 Recycler 3 | . . . . 1 2 Watcher 2 | . . . . . 2 Swarmer 3 | . 3 . . . . Grunt 7 | . 2 2 . 2 1 Duelist 1 | . . . . . 1 Sentry 1 | . . . . . 1 Best Kill Streak 5 | 3 5 1 . 2 5 Combat Bots Only 5 | . 5 1 . 1 2 Max Kills in Single Turn 2 | 2 1 1 . 1 2 Gunslinging . | . . . . . . Exploded . | . . . . . . Melee 1 | . . . . . 1 Uniques/NPCs Destroyed . | . . . . . . Combat | -11 -10 -10 -10 -9 -8 -------- Run | Yrd Mat Min Exi Min Mat Hostile Shots Fired 150 | . 48 2 . 19 81 Missed 41 | . 14 1 . 8 18 Damage Taken 1652 | 32 321 10 . 124 1165 Core 616 | . 30 . . 33 553 Absorbed by Shields . | . . . . . . Core Remaining (%) 87 | 100 . . . 74 . Volleys Fired 103 | 5 50 4 . 17 27 Largest 3 | 2 2 1 . 2 3 Hottest 150 | 60 60 20 . 85 150 Shots Fired 151 | 9 58 4 . 31 49 Gun 148 | 9 58 4 . 31 46 Cannon 3 | . . . . . 3 Launcher . | . . . . . . Special . | . . . . . . Kinetic 87 | 5 50 4 . 17 11 Thermal 49 | . . . . 14 35 Explosive . | . . . . . . Electromagnetic 15 | 4 8 . . . 3 Robot Hit Streak 12 | 7 4 5 . 12 4 Robot Miss Streak 9 | 1 9 . . 5 6 Penetration Max . | . . . . . . Secondary Targets 1 | . . . . 1 . Max Gunslinging Chain 1 | . . . . 1 . Shots Hit Robots 85 | 7 28 4 . 22 24 Core Hits 46 | 3 11 3 . 5 24 Critical Kills 1 | . 1 . . . . Critical Parts Destroyed . | . . . . . . Critical Strikes 5 | . 1 . . 1 3 Burn 3 | . . . . 1 2 Destroy 1 | . 1 . . . . Sever 1 | . . . . . 1 Melee Attacks 4 | . . . . . 4 Impact . | . . . . . . Slashing 4 | . . . . . 4 Piercing . | . . . . . . Sneak Attacks . | . . . . . . Combat Hostiles . | . . . . . . Follow-up Attacks . | . . . . . . Damage Inflicted 1682 | 168 397 52 . 329 736 Guns 1246 | 95 397 48 . 329 377 Cannons 10 | . . . . . 10 Explosions 341 | 73 . . . . 268 Melee 81 | . . . . . 81 Ramming 4 | . . 4 . . . Kinetic 736 | 39 360 48 . 171 118 Thermal 490 | 73 . . . 158 259 Explosive . | . . . . . . Electromagnetic 371 | 56 37 . . . 278 Impact . | . . . . . . Slashing 81 | . . . . . 81 Piercing . | . . . . . . Highest Corruption 6 | . 1 1 1 1 6 Average Corruption 1 | . 1 1 1 1 5 Corruption Purged . | . . . . . . Corruption Blocked . | . . . . . . Effects 12 | . . 1 7 2 2 Message Errors 4 | . . . 3 . 1 Matter Fused 2 | . . 1 . . 1 Heat Flow Errors 2 | . . . 2 . . Energy Discharges 2 | . . . 1 1 . Data Loss (minor) 2 | . . . 1 1 . Overload Shots . | . . . . . . Overflow Damage . | . . . . . . Projectiles . | . . . . . . Explosions . | . . . . . . Melee . | . . . . . . Knockbacks . | . . . . . . Impact . | . . . . . . Kinetic . | . . . . . . Secondary . | . . . . . . Self-Inflicted Damage 32 | 32 . . . . . Shots 1 | 1 . . . . . Rammed . | . . . . . . Targets Rammed 1 | . . 1 . . . Kicked 1 | . . 1 . . . Crushed . | . . . . . . Highest Temperature 656 | 12 32 . 266 440 656 Average Temperature 233 | 12 19 . 115 236 281 Received Heat Transfer 537 | . 66 6 . 69 396 Effects 26 | . . . . 5 21 Shutdowns 6 | . . . . 1 5 Energy Bleed 3 | . . . . . 3 Interference 1 | . . . . . 1 Short Circuit 5 | . . . . . 5 Damage (minor) 1 | . . . . 1 . Damage (major) 10 | . . . . 3 7 Siege Activations . | . . . . . . Robots Corrupted . | . . . . . . Combat Hostiles . | . . . . . . Parts Fried . | . . . . . . Impact Corruptions . | . . . . . . Robots Melted . | . . . . . . Combat Hostiles . | . . . . . . Parts Melted 1 | . . . . 1 . Heat Transferred 1321 | 100 . . . 444 777 Parts Sabotaged . | . . . . . . Parts Stolen . | . . . . . . Parts Stripped . | . . . . . . Power Chain Reactions 1 | 1 . . . . . Latent Energy Used 251 | . . . . . 251 LE Corruption 6 | . . . . . 6 Alert | -11 -10 -10 -10 -9 -8 ------- Run | Yrd Mat Min Exi Min Mat Peak Influence 167 | 15 145 106 . 49 167 Initial 56 | . 9 56 . . 18 Average 72 | 7 128 86 . 43 70 Maximum Alert Level . | . . . . . . Low Security (%) 100 | 100 100 100 . 100 100 Level 1 . | . . . . . . Level 2 . | . . . . . . Level 3 . | . . . . . . Level 4 . | . . . . . . Level 5 . | . . . . . . High Security . | . . . . . . Max Security . | . . . . . . Squads Dispatched 3 | . 2 . . . 1 Investigation . | . . . . . . Extermination . | . . . . . . Reinforcement 3 | . 2 . . . 1 Assault . | . . . . . . Garrison . | . . . . . . Intercept . | . . . . . . Searches Triggered . | . . . . . . Construction Impeded . | . . . . . . Haulers Reinforced . | . . . . . . Active Scanning Responses . | . . . . . . Cargo Convoy Interrupts . | . . . . . . Stealth | -11 -10 -10 -10 -9 -8 --------- Run | Yrd Mat Min Exi Min Mat Distress Signals 5 | . 2 . . . 3 Communications Jammed . | . . . . . . Distress Signals . | . . . . . . Times Spotted 32 | . 12 2 . 2 16 Peak Tracking Total 7 | . 5 2 . 2 7 Tactical Retreats 3 | . . . . . 3 Traps | -11 -10 -10 -10 -9 -8 ------- Run | Yrd Mat Min Exi Min Mat Traps Triggered 1 | . 1 . . . . Indirectly . | . . . . . . Trap Hack Attempts . | . . . . . . Triggered . | . . . . . . Disarmed . | . . . . . . Reprogrammed . | . . . . . . Reused . | . . . . . . Traps Extracted . | . . . . . . Installed . | . . . . . . Triggered . | . . . . . . Machines | -11 -10 -10 -10 -9 -8 ---------- Run | Yrd Mat Min Exi Min Mat Machines Disabled . | . . . . . . Max in Single Turn . | . . . . . . Machines Repaired . | . . . . . . Machines Dismantled . | . . . . . . Machines Sabotaged . | . . . . . . Overloaded Fab Kills . | . . . . . . Hacking | -11 -10 -10 -10 -9 -8 --------- Run | Yrd Mat Min Exi Min Mat Machines Accessed 5 | . . . 4 1 . Terminals 1 | . . . . 1 . Fabricators . | . . . . . . Repair Stations . | . . . . . . Recycling Units . | . . . . . . Scanalyzers . | . . . . . . Garrison Access . | . . . . . . Total Hacks 52 | . . . 49 3 . Successful 51 | . . . 49 2 . Failed 1 | . . . . 1 . Catastrophic . | . . . . . . Database Lockouts . | . . . . . . Manual 1 | . . . 1 . . Terminals 3 | . . . . 3 . Fabricators . | . . . . . . Repair Stations . | . . . . . . Recycling Units . | . . . . . . Scanalyzers . | . . . . . . Garrison Access . | . . . . . . Terminal Hacks 51 | . . . 49 2 . Record 49 | . . . 49 . . Dispatch Records 1 | . . . . 1 . Patrol Status 1 | . . . . 1 . Fabricator Hacks . | . . . . . . Repair Station Hacks . | . . . . . . Recycling Unit Hacks . | . . . . . . Scanalyzer . | . . . . . . Garrison Access Hacks . | . . . . . . Unauthorized Hacks . | . . . . . . Terminals . | . . . . . . Fabricators . | . . . . . . Repair Stations . | . . . . . . Recycling Units . | . . . . . . Scanalyzers . | . . . . . . Garrison Access . | . . . . . . Data Cores Recovered . | . . . . . . Used . | . . . . . . Hacking Detections 1 | . . . . 1 . Full Trace Events . | . . . . . . Feedback Events . | . . . . . . Feedback Blocked . | . . . . . . Robot Schematics Acquired . | . . . . . . Robots Built . | . . . . . . Authchips . | . . . . . . Time . | . . . . . . Total Robot Build Rating . | . . . . . . Part Schematics Acquired . | . . . . . . Parts Built . | . . . . . . Authchips . | . . . . . . Time . | . . . . . . Total Part Build Rating . | . . . . . . Parts Repaired . | . . . . . . Time . | . . . . . . Parts Recycled . | . . . . . . Recycled Matter . | . . . . . . Retrieved Matter . | . . . . . . Retrieved Components . | . . . . . . Parts Scanalyzed . | . . . . . . Part Schematics Acquired . | . . . . . . Parts Damaged . | . . . . . . Bothacking | -11 -10 -10 -10 -9 -8 ------------ Run | Yrd Mat Min Exi Min Mat Used RIF Installer . | . . . . . . Robots Hacked . | . . . . . . Non-combat . | . . . . . . Combat . | . . . . . . Robot Hacks Applied . | . . . . . . Relay Couplers Released . | . . . . . . Fabnet Peak Effective % . | . . . . . . Robots Rewired . | . . . . . . Allies Hacked . | . . . . . . Hacks Repelled . | . . . . . . Allies | -11 -10 -10 -10 -9 -8 -------- Run | Yrd Mat Min Exi Min Mat Total Allies . | . . . . . . Largest Group . | . . . . . . Highest-Rated Group . | . . . . . . Highest-Rated Ally . | . . . . . . Total Orders . | . . . . . . Ally Attacks . | . . . . . . Total Damage . | . . . . . . Kills . | . . . . . . Allies Corrupted . | . . . . . . Allies Melted . | . . . . . . Intel | -11 -10 -10 -10 -9 -8 ------- Run | Yrd Mat Min Exi Min Mat Robot Analysis Total . | . . . . . . Derelict Logs Recovered . | . . . . . . Drone Launches . | . . . . . . Drone Recoveries . | . . . . . . Exploration | -11 -10 -10 -10 -9 -8 ------------- Run | Yrd Mat Min Exi Min Mat Turns Passed 2540 | 98 285 151 1303 387 316 Spaces Moved 1348 | 58 146 117 716 174 137 Core 67 | 7 . . . . 60 Treads . | . . . . . . Legs 1281 | 51 146 117 716 174 77 Wheels . | . . . . . . Hover . | . . . . . . Flight . | . . . . . . Fastest Speed 50 | 50 120 120 120 190 50 Average Speed 164 | 116 120 120 179 193 157 Slowest Speed 550 | 150 120 120 190 260 550 Overloaded Moves . | . . . . . . Propulsion Burnouts . | . . . . . . Robots Hopped . | . . . . . . Cave-ins Triggered . | . . . . . . Exploration Rate (%) 35 | 3 29 42 93 29 14 Regions Visited 5 Branch Regions 3 Pre-discovered Areas 1 | . . . 1 . . Known Exits Taken . | . . . . . . Unknown Exits Taken 5 | 1 1 1 1 1 . Scrap Searched 1 | . . . . 1 . Spaces Dug . | . . . . . . Terrain Destroyed 17 | . . . . . 17 Melee . | . . . . . . Projectile . | . . . . . . AOE 17 | . . . . . 17 Terrain Rammed . | . . . . . . Walls Destroyed . | . . . . . . Machines Disabled . | . . . . . . Actions | -11 -10 -10 -10 -9 -8 --------- Run | Yrd Mat Min Exi Min Mat Total 1513 | 78 198 123 733 194 187 Wait 1 | . . . . . 1 Move 1343 | 57 145 116 715 173 137 Hop . | . . . . . . Pick Up 23 | 8 1 2 5 2 5 Fast Attach . | . . . . . . Attach 24 | 7 2 . 5 1 9 Detach 3 | . . . 1 . 2 Swap 8 | 1 . . 4 1 2 Drop 3 | . . . 3 . . Fire 103 | 5 50 4 . 17 27 Melee 4 | . . . . . 4 Ram . | . . . . . . Kick 1 | . . 1 . . . Crush . | . . . . . . Escape Stasis . | . . . . . . Rewire . | . . . . . . Trap . | . . . . . . Miscellaneous . | . . . . . . Route ------- -11/Scrapyard -10/Materials (discovered 2 exits: [*Mat] / [*Min]) -10/Mines -10/Exiles -9/Mines -8/Materials History --------- Turn | Location | Event 14 | -11/Scrapyard | Discovered new exit (range 14) 99 | -11/Scrapyard | Entered Materials 177 | -10/Materials | Lost 3 parts (1p1n1w) 252 | -10/Materials | Met 8R-AWN 311 | -10/Materials | Build established: Mutant 352 | -10/Materials | Discovered new exit (range 15) 365 | -10/Materials | Discovered new exit (range 15) 384 | -10/Materials | Entered Mines 386 | -10/Mines | Followed 8R-AWN into the Mines 530 | -10/Mines | Discovered new exit (range 5) 535 | -10/Mines | Entered Exiles 567 | -10/Exiles | Welcomed by 8R-AWN 590 | -10/Exiles | Met EX-HEX 636 | -10/Exiles | Met EX-DEC 738 | -10/Exiles | Learned location of Zion (-6) 801 | -10/Exiles | Met EX-BIN 850 | -10/Exiles | Aligned with FarCom system 852 | -10/Exiles | Given EX-Vault access code 868 | -10/Exiles | Build established: Scavenger-Mutant 1169 | -10/Exiles | Discovered new exit (range 14) 1299 | -10/Exiles | Visited The Gauntlet 1623 | -10/Exiles | Opened EX-Vault 1637 | -10/Exiles | Found Prototype Energy Cannon 1638 | -10/Exiles | Identified Latent Energy Streamer 1643 | -10/Exiles | Found Prototype Storage 1644 | -10/Exiles | Identified Superbattery 1649 | -10/Exiles | Found Prototype Device 1650 | -10/Exiles | Identified Cloak of Protection 1701 | -10/Exiles | Warned to stay clear of 0b10 Research branches 1838 | -10/Exiles | Left Exiles lab with Latent Energy Streamer 1838 | -10/Exiles | Entered Mines 2197 | -9/Mines | Discovered new exit (range 12) 2225 | -9/Mines | Entered Materials 2225 | -8/Materials | Evolved 4 slots: Power x1, Utility x2, Weapon x1 2488 | -8/Materials | Core integrity fell below 50% 2526 | -8/Materials | Lost 7 parts (2p3u2w) 2533 | -8/Materials | Core integrity fell below 20% 2541 | -8/Materials | Destroyed by G-47 Trooper with Particle Gun Last Messages --------------- K-01 Serf collects debris. Critical hit (Burn: +37). Broken Seismic Detector destroyed. K-01 Serf collects debris. Y-45 Defender misfires. K-01 Serf collects debris. Med. Storage Unit destroyed. Critical hit (Burn: +37). R-06 Scavenger collects Aluminum Leg. O-16 Technician: "IFF HANDSHAKE FAILED. SECURING TERMINAL." ALERT: Hostiles spotted, dispatching reinforcements to Terminal M002. System corrupted: Matter fused (-10). Acquired Axe. Lgt. Ion Engine severed. L-31 Rogue Imp. Ion Engine severed. Axe severed. Acquired Axe. L-31 Rogue destroyed. Map ----- +----------------------------------------------------+ | ????????????? [!%[[ #! #??????????? | | ?????????????#######"### # #??????????? | | ?????????????????? ??## ## #??????????? | | ???????????????? ????# ## #??????????? | | ??????????????? ?????# ###########??????????? | | ???????????????" "??????# #????????????????????? | | ???????????????" ???????# #????????????????????? | | ????????????????????????# #????????????????????? | | ????????????????????????# #????????????????????? | | ????????????????????????# #????????????????????? | | ????????????????????????# #????????????????????? | | ????????????????????????# #????????????????????? | | ????????????????????????# #????????????????????? | | ????????????????????????# #????????????????????? | | ????????????????????????# #????????????????????? | | ????????????????????????# #????????????????????? | | ????????????????????????# #????????????????????? | | ????????????????????????# #????????????????????? | | ????????????????????????# #????????????????????? | | ????????????????????????# #????????????????????? | | ????????????g???????????# #????????????????????? | | ????????????gg????####### #??????????s?????????? | | ??????????????+ * #????????????????????? | | ??????????????????########Y######??????s??s??????? | | ??????????????????????# !gg !#????????????????? | | ??????????????????????# @! #????????????????? | | ??????????????????????# """ #????????????????? | | ??????????????????????# ! """ #????????????????? | | ??????????????????????#" """ #????????????????? | | ??????????????????????#T #????????????????? | | ??????????????????????#" #????????????????? | | ??????????????????????# #????????????????? | | ??????????????????????###########????????????????? | | ?????????????????????????????????????????????????? | | | | | | | | | | | | | | | | | | | | | | | | | | | | | | | | | +----------------------------------------------------+ Best States ------------- Heat Dissipation 31 Energy Generation 23 Energy Capacity 300 Matter Stores 300 Matter Capacity 300 Sight Range 16 Terrain Scan Density 10 Additional Mass Support 6 Evasion (%) 55 Item Schematics ----------------- None Robot Schematics ------------------ None Fabricated ------------ Nothing Alien Tech Used ----------------- None Achievements -------------- None Challenges ------------ None Game ------ Seed EtherialFireDissipator Manual? 0 Play Time 00:29:18 Cumulative 8.0 hours Start 2024.04.21 @ 19:43:03 End 2024.04.21 @ 20:14:52 Sessions 1 Manual Loads 0 Difficulty Rogue Special Mode None Game No. 11 Rogue 11 Adventurer 0 Explorer 0 Win Type - Total 0 Types 0/0/0/0/0/0/0/0/0 Lore% 16 Gallery% 17 Achievement% 16 Wizard Run 0 Options --------- Layout 1 ASCII 0 Keyboard 0 Movement Mouse Keybinds 0 Fullscreen 1 Font 24/Smallcaps Map View 50x40 Zoom Use 0% Tactical HUD 0 Map Filters NONE Filters NONE Steam 1 RUN: 5785bdbf-c72b-4c87-a229-530173a65a4e